[Event "Red Bull Chess Masters 2018"]
[Site "Istanbul"]
[Date "2018.10.20"]
[Round "3.1"]
[White "Ozsakallioglu, Okan"]
[Black "Dogan, Ali Ekber"]
[Result "0-1"]
[ECO "C03"]
[WhiteElo "2050"]
[BlackElo "2200"]
[Annotator "NA"]
[PlyCount "221"]
[EventDate "2018.10.19"]
[EventType "team-tourn"]
[EventCountry "TUR"]
[SourceTitle "playchess.com"]
[Source "ChessBase"]
[SourceQuality "1"]
[TimeControl "600+5"]

1. e4 {[%emt 0:00:05]} e6 {[%emt 0:00:05]} 2. d4 {[%emt 0:00:05]} d5 {[%emt 0:00:05]} 3. Nd2 {[%emt 0:00:05]} Be7 {[%emt 0:00:00]} 4. Ngf3 {[%emt 0:00:00]} Nf6 {[%emt 0:00:16]} 5. Bd3 {[%emt 0:00:29]} c5 {[%emt 0:00:05]} 6. dxc5 {[%emt 0:00:00]} O-O {[%emt 0:00:17] C03: French Tarrasch: Unusual Black 3rd moves} (6... dxe4 7. Nxe4 Nxe4 8. Bxe4 Qxd1+ 9. Kxd1 Bxc5 10. Ke2 Nd7 11. Be3 Bxe3 12. Kxe3 Nc5 13. Rhd1 Ke7 14. Bd3 f6 15. Bc4 Bd7 16. b4 Na4 17. Rxd7+ Kxd7 18. Bb5+ {½-½ (52) Svidler,P (2753)-Yu,Y (2759) Shenzhen 2018}) 7. O-O {[%emt 0:00:11]} a5 {[%emt 0:00:00]} 8. c4 {[%emt 0:00:18]} Na6 {[%emt 0:00:33]} 9. e5 {[%emt 0:00:12]} Nd7 {[%emt 0:00:28]} 10. cxd5 {[%emt 0:00:02]} Naxc5 $146 {[%emt 0:00:41]} ({Predecessor:} 10... exd5 11. Nb3 a4 12. c6 bxc6 13. Nbd4 Ndb8 14. Qxa4 {1-0 (39) Lukasova,A (2303)-Krzyzanowski,A (2353) ICCF email 2013}) 11. Be4 {[%emt 0:01:31]} exd5 {[%emt 0:00:21]} 12. Bxd5 {[%emt 0:00:08]} Nxe5 {[%emt 0:01:14]} 13. Ne4 {[%emt 0:01:07]} Bg4 {[%emt 0:01:52]} 14. Nxc5 {[%emt 0:00:05]} Bxc5 {[%emt 0:00:05]} 15. Bf4 {[%emt 0:00:00]} Ng6 {[%emt 0:00:34]} 16. Bg3 {[%emt 0:00:00]} Qb6 {[%emt 0:00:06]} 17. Qb3 {[%emt 0:00:03]} Qxb3 {[%emt 0:01:52]} 18. axb3 {[%emt 0:00:01]} Ra7 {[%emt 0:00:26]} 19. Rfc1 {[%emt 0:00:14]} b6 {[%emt 0:00:04]} 20. h3 {[%emt 0:00:37]} Bf5 {[%emt 0:00:12]} 21. Rd1 {[%emt 0:00:30]} Rd7 {[%emt 0:00:08]} 22. Bc4 {[%emt 0:00:16]} Rfd8 {[%emt 0:00:05]} 23. Rxd7 {[%emt 0:00:05]} Rxd7 {[%emt 0:00:08]} 24. Re1 {[%emt 0:00:00]} h6 $11 {[%emt 0:01:15]} 25. Kh2 {[%emt 0:01:13]} Kh7 {[%emt 0:00:15]} 26. h4 {[%emt 0:00:02]} Bg4 {[%emt 0:00:29]} 27. Ne5 {[%emt 0:00:19]} Nxe5 {[%emt 0:00:05]} 28. Rxe5 {[%emt 0:00:00]} Bd4 {[%emt 0:00:21]} 29. Re4 {[%emt 0:00:16]} f5 {[%emt 0:00:05]} 30. Re8 {[%emt 0:00:00]} Bxb2 {[%emt 0:00:12]} 31. Be6 {[%emt 0:00:05]} Rb7 {[%emt 0:00:09]} 32. f3 {[%emt 0:00:01]} Bh5 {[%emt 0:00:06]} 33. Bxf5+ {[%emt 0:00:05]} Bg6 {[%emt 0:00:00]} 34. Bxg6+ {[%emt 0:00:10]} Kxg6 {[%emt 0:00:00]} 35. Re6+ {[%emt 0:00:16]} Kf7 {[%emt 0:00:02]} 36. Rc6 {[%emt 0:00:05]} b5 {[%emt 0:00:00]} 37. Ra6 {[%emt 0:00:06]} Bc3 {[%emt 0:00:01]} 38. Bf2 {[%emt 0:00:27]} a4 {[%emt 0:00:05]} 39. bxa4 {[%emt 0:01:06]} b4 {[%emt 0:00:05]} 40. Be3 {[%emt 0:00:11]} b3 {[%emt 0:00:00]} 41. Bc1 {[%emt 0:00:05]} b2 {[%emt 0:00:05]} 42. Bxb2 {[%emt 0:00:05]} Rxb2 {[%emt 0:00:00]} 43. Kh3 {[%emt 0:00:01]} Ra2 {[%emt 0:00:05]} 44. Rc6 {[%emt 0:00:00]} Be5 {[%emt 0:00:12]} 45. Rc4 {[%emt 0:00:03]} h5 {[%emt 0:00:07]} 46. Rc5 {[%emt 0:00:05]} Kf6 {[%emt 0:00:08]} 47. g3 {[%emt 0:00:42]} Ra3 {[%emt 0:00:05]} 48. Kg2 {[%emt 0:00:05]} Ra2+ {[%emt 0:00:05]} 49. Kh3 {[%emt 0:00:05]} g6 {[%emt 0:00:10]} 50. a5 {[%emt 0:00:09]} Ra3 {[%emt 0:00:09]} 51. Kg2 {[%emt 0:00:05]} Ra2+ {[%emt 0:00:05]} 52. Kh3 {[%emt 0:00:05]} Bd4 {[%emt 0:00:05]} 53. Rc6+ {[%emt 0:00:05]} Kf7 {[%emt 0:00:05]} 54. Rc7+ {[%emt 0:00:05]} Kg8 {[%emt 0:00:00]} 55. Rc8+ {[%emt 0:00:21]} Kf7 {[%emt 0:00:00]} 56. Rc7+ {[%emt 0:00:05]} Kf8 {[%emt 0:00:08]} 57. Rc8+ {[%emt 0:01:23]} Ke7 {[%emt 0:00:05]} 58. Rc6 {[%emt 0:00:02]} Kf7 {[%emt 0:00:15]} 59. Rc7+ {[%emt 0:00:05]} Kf6 {[%emt 0:00:05]} 60. Rc6+ {[%emt 0:00:05]} Kf7 {[%emt 0:00:12]} 61. Rc7+ {[%emt 0:00:00]} Ke8 {[%emt 0:00:05]} 62. Rc6 {[%emt 0:00:05]} Bg1 {[%emt 0:00:05]} 63. g4 {[%emt 0:00:05]} hxg4+ {[%emt 0:00:05]} 64. fxg4 {[%emt 0:00:05]} Ra3+ {[%emt 0:00:05]} 65. Kg2 {[%emt 0:00:05]} Bd4 {[%emt 0:00:02]} 66. Rxg6 {[%emt 0:00:00]} Rxa5 {[%emt 0:00:07]} 67. Kf3 {[%emt 0:00:00]} Kf7 {[%emt 0:00:05]} 68. Rd6 {[%emt 0:00:00]} Be5 {[%emt 0:00:00]} 69. Rd7+ {[%emt 0:00:13]} Ke6 {[%emt 0:00:01]} 70. Rd3 {[%emt 0:00:05]} Ra4 {[%emt 0:00:00]} 71. Re3 {[%emt 0:00:17]} Rf4+ {[%emt 0:00:01]} 72. Kg3 {[%emt 0:00:00]} Re4+ {[%emt 0:00:15]} 73. Kf3 {[%emt 0:00:01]} Rf4+ {[%emt 0:00:06]} 74. Kg3 {[%emt 0:00:01]} Ra4+ {[%emt 0:00:07]} 75. Kf3 {[%emt 0:00:05]} Kf6 {[%emt 0:00:00]} 76. Re4 {[%emt 0:00:03]} Ra3+ {[%emt 0:00:02]} 77. Re3 {[%emt 0:00:00]} Ra4 {[%emt 0:00:03]} 78. Re4 {[%emt 0:00:02]} Ra3+ {[%emt 0:00:01]} 79. Re3 {[%emt 0:00:00]} Ra1 {[%emt 0:00:06]} 80. Ke4 {[%emt 0:00:01]} Rg1 {[%emt 0:00:03]} 81. Kd5 {[%emt 0:00:11]} Bf4 {[%emt 0:00:20]} 82. Re6+ {[%emt 0:00:05]} Kf7 {[%emt 0:00:00]} 83. Re4 {[%emt 0:00:58]} Rxg4 {[%emt 0:00:00]} 84. h5 {[%emt 0:00:21]} Rg5+ {[%emt 0:00:02]} 85. Kd4 {[%emt 0:00:05]} Bg3 {[%emt 0:00:05]} 86. h6 {[%emt 0:00:01]} Rh5 {[%emt 0:00:07]} 87. Rg4 {[%emt 0:00:05]} Bh4 {[%emt 0:00:08]} 88. Rg7+ {[%emt 0:00:09]} Kf8 {[%emt 0:00:04]} 89. Rg6 {[%emt 0:00:12]} Kf7 {[%emt 0:00:05]} 90. Rg7+ {[%emt 0:00:00]} Kf6 {[%emt 0:00:04]} 91. Rh7 {[%emt 0:00:04]} Kg6 {[%emt 0:00:02]} 92. Rg7+ {[%emt 0:00:09]} Kxh6 {[%emt 0:00:05]} 93. Rg8 {[%emt 0:00:05]} Bf6+ {[%emt 0:00:00]} 94. Ke4 {[%emt 0:00:04]} Bg7 {[%emt 0:00:00]} 95. Rc8 {[%emt 0:00:04]} Kg6 {[%emt 0:00:01]} 96. Rc6+ {[%emt 0:00:06]} Bf6 {[%emt 0:00:00]} 97. Ra6 {[%emt 0:00:07]} Rh4+ {[%emt 0:00:05]} 98. Kf3 {[%emt 0:00:00]} Kf5 {[%emt 0:00:00]} 99. Kg3 {[%emt 0:00:03]} Rg4+ {[%emt 0:00:02]} 100. Kf3 {[%emt 0:00:02]} Be5 {[%emt 0:00:04]} 101. Ra8 {[%emt 0:00:03]} Rg3+ {[%emt 0:00:00]} 102. Kf2 {[%emt 0:00:01]} Rb3 {[%emt 0:00:05]} 103. Rf8+ {[%emt 0:00:04]} Ke4 {[%emt 0:00:00]} 104. Kg2 {[%emt 0:00:00]} Rg3+ {[%emt 0:00:02]} 105. Kf2 {[%emt 0:00:05]} Rg6 {[%emt 0:00:05]} 106. Re8 {[%emt 0:00:03]} Kf4 {[%emt 0:00:11]} 107. Rf8+ {[%emt 0:00:01]} Bf6 {[%emt 0:00:14]} 108. Rf7 {[%emt 0:00:02]} Ke4 {[%emt 0:00:03]} 109. Rf8 {[%emt 0:00:26]} Bd4+ {[%emt 0:00:00]} 110. Kf1 {[%emt 0:00:00]} Kd3 {[%emt 0:00:16]} 111. Ke1 {[%emt 0:00:07]} 0-1

[Event "Red Bull Chess Masters 2018"]
[Site "Istanbul"]
[Date "2018.10.20"]
[Round "3.1"]
[White "Atas, Yunus"]
[Black "Zor, Alber Kadir"]
[Result "0-1"]
[ECO "D55"]
[WhiteElo "1921"]
[BlackElo "2167"]
[Annotator "NA"]
[PlyCount "68"]
[EventDate "2018.10.19"]
[EventType "team-tourn"]
[EventCountry "TUR"]
[SourceTitle "playchess.com"]
[Source "ChessBase"]
[SourceQuality "1"]
[TimeControl "600+5"]

1. d4 {[%emt 0:00:05]} d5 {[%emt 0:00:05]} 2. Nf3 {[%emt 0:00:05]} Nf6 {[%emt 0:00:00]} 3. c4 {[%emt 0:00:00]} e6 {[%emt 0:00:05]} 4. Nc3 {[%emt 0:00:05]} Be7 {[%emt 0:00:05]} 5. Bg5 {[%emt 0:00:05]} h6 {[%emt 0:00:05]} 6. Bxf6 {[%emt 0:00:05]} Bxf6 {[%emt 0:00:05]} 7. e3 {[%emt 0:00:05]} O-O {[%emt 0:00:05]} 8. Qc2 {[%emt 0:00:05]} c6 {[%emt 0:00:05]} 9. cxd5 {[%emt 0:00:02] D55: Queen's Gambit Declined: 4 Bg5 Be7: Lines without ...h6 and 6...h6 7 Bxf6} (9. h4 c5 10. O-O-O cxd4 11. exd4 Nc6 12. g4 g6 13. g5 hxg5 14. hxg5 Bxg5+ 15. Kb1 Bf6 16. Bd3 Nb4 {½-½ (37) Salem,A (2638)-Kravtsiv,M (2672) Riadh 2017}) 9... exd5 {[%emt 0:00:00]} 10. h3 {[%emt 0:00:02]} a5 {[%emt 0:00:13]} 11. Bd3 {[%emt 0:00:17]} Re8 {[%emt 0:00:05]} 12. O-O {[%emt 0:00:05]} Na6 {[%emt 0:00:00]} 13. a3 {[%emt 0:00:06]} Be7 $146 {[%emt 0:00:30]} ({Predecessor:} 13... g6 14. Na4 Bg7 15. Rfe1 Bd7 {1-0 (58) Megaranto,S (2533)-Susanto,A (2112) Jakarta 2011}) 14. Rfd1 {[%emt 0:01:23]} Bd6 {[%emt 0:00:02]} 15. e4 {[%emt 0:00:14]} dxe4 {[%emt 0:00:16]} 16. Nxe4 {[%emt 0:00:05]} Nc7 {[%emt 0:00:05]} 17. Nxd6 {[%emt 0:00:05]} Qxd6 {[%emt 0:00:00]} 18. Rac1 {[%emt 0:01:14]} Be6 {[%emt 0:00:25]} 19. Qc5 {[%emt 0:00:41]} Red8 {[%emt 0:00:06]} 20. Bb1 {[%emt 0:01:04]} Nd5 {[%emt 0:01:39]} 21. Re1 {[%emt 0:01:02]} Nf4 {[%emt 0:00:29]} 22. Qxd6 {[%emt 0:00:46]} Rxd6 {[%emt 0:00:01]} 23. Re5 {[%emt 0:00:50]} a4 {[%emt 0:00:34]} 24. Rce1 {[%emt 0:00:24]} Kf8 {[%emt 0:00:54]} 25. R5e4 {[%emt 0:00:25]} g5 {[%emt 0:00:31]} 26. Re5 {[%emt 0:00:47]} Rad8 {[%emt 0:01:56]} 27. Bf5 {[%emt 0:00:27]} Bd5 {[%emt 0:00:28]} 28. Re7 {[%emt 0:00:39]} Bxf3 {[%emt 0:00:10]} 29. gxf3 {[%emt 0:00:01]} Rf6 {[%emt 0:00:23]} 30. Bd7 $2 {[%emt 0:00:09]} (30. Rd7 Rxd7 31. Bxd7) 30... Kg7 $19 {[%emt 0:00:03]} 31. Kh2 {[%emt 0:00:48]} Ng6 {[%emt 0:00:10]} 32. Bg4 {[%emt 0:00:15]} Nxe7 {[%emt 0:00:06]} 33. Rxe7 {[%emt 0:00:05]} b5 {[%emt 0:00:00]} 34. Rc7 {[%emt 0:00:12]} Rxd4 {[%emt 0:00:09]} 0-1

[Event "Red Bull Chess Masters 2018"]
[Site "Istanbul"]
[Date "2018.10.20"]
[Round "3.1"]
[White "Incecik, Seyma Zeynep"]
[Black "Sahin, Hayrun Nisa"]
[Result "1/2-1/2"]
[ECO "A01"]
[WhiteElo "1796"]
[BlackElo "1708"]
[Annotator "NA"]
[PlyCount "74"]
[EventDate "2018.10.19"]
[EventType "team-tourn"]
[EventCountry "TUR"]
[SourceTitle "playchess.com"]
[Source "ChessBase"]
[SourceQuality "1"]
[TimeControl "600+5"]

1. b3 {[%emt 0:00:05]} Nf6 {[%emt 0:00:05]} 2. Bb2 {[%emt 0:00:05]} g6 {[%emt 0:00:01]} 3. Bxf6 {[%emt 0:00:00]} exf6 {[%emt 0:00:06]} 4. c4 {[%emt 0:00:00]} Bg7 {[%emt 0:00:05]} 5. Nc3 {[%emt 0:00:01]} d6 {[%emt 0:00:12]} 6. Nf3 {[%emt 0:00:05]} c6 {[%emt 0:00:22]} 7. e3 {[%emt 0:00:03]} Be6 {[%emt 0:00:05]} 8. d4 {[%emt 0:00:00]} d5 {[%emt 0:00:14]} 9. cxd5 {[%emt 0:00:14]} cxd5 {[%emt 0:00:05]} 10. Bb5+ {[%emt 0:00:22]} Nd7 {[%emt 0:00:02]} 11. O-O {[%emt 0:00:16]} O-O {[%emt 0:00:05]} 12. Rc1 {[%emt 0:00:05]} a6 {[%emt 0:00:07]} 13. Bxd7 {[%emt 0:00:26]} Qxd7 {[%emt 0:00:08]} 14. Na4 {[%emt 0:00:02]} Qd6 {[%emt 0:00:24]} 15. Qd2 {[%emt 0:00:52]} Bd7 {[%emt 0:00:34]} 16. Nc5 {[%emt 0:00:22]} b6 {[%emt 0:00:06]} 17. Nxd7 {[%emt 0:00:09]} Qxd7 {[%emt 0:00:00]} 18. Rc2 {[%emt 0:00:44]} Rfc8 {[%emt 0:00:05]} 19. Rfc1 {[%emt 0:00:01]} Bf8 {[%emt 0:00:12]} 20. Rc3 {[%emt 0:00:56]} Ba3 {[%emt 0:00:27]} 21. R1c2 {[%emt 0:00:35]} Kg7 {[%emt 0:00:05]} 22. Qd3 {[%emt 0:00:12]} Bb4 {[%emt 0:00:15]} 23. Rxc8 {[%emt 0:00:05]} Rxc8 {[%emt 0:00:03]} 24. h3 {[%emt 0:00:52]} b5 {[%emt 0:00:43]} 25. Kf1 {[%emt 0:00:30]} Rc6 {[%emt 0:00:24]} 26. Ne1 {[%emt 0:00:35]} Bxe1 {[%emt 0:00:33]} 27. Kxe1 {[%emt 0:00:03]} Qc7 {[%emt 0:00:03]} 28. Rxc6 {[%emt 0:00:17]} Qxc6 {[%emt 0:00:05]} 29. Kd2 {[%emt 0:00:00]} b4 {[%emt 0:00:18]} 30. Qc2 {[%emt 0:00:09]} Qb5 {[%emt 0:00:06]} 31. Qc5 {[%emt 0:02:06]} Qf1 {[%emt 0:00:17]} 32. Qxd5 {[%emt 0:00:05]} Qxf2+ {[%emt 0:00:02]} 33. Kd3 {[%emt 0:00:26]} Qf1+ {[%emt 0:00:09]} 34. Kd2 {[%emt 0:00:24]} Qf2+ {[%emt 0:00:05]} 35. Kd3 {[%emt 0:00:04]} Qf1+ {[%emt 0:01:41]} 36. Kd2 {[%emt 0:00:05]} Qf2+ {[%emt 0:00:00]} 37. Kd3 {[%emt 0:00:21]} Qf1+ {[%emt 0:00:22]} 1/2-1/2

[Event "Red Bull Chess Masters 2018"]
[Site "Istanbul"]
[Date "2018.10.20"]
[Round "3.1"]
[White "Yucesoy, Atil"]
[Black "Erdogan, Anil Berk"]
[Result "0-1"]
[ECO "E61"]
[WhiteElo "1685"]
[BlackElo "2116"]
[Annotator "NA"]
[PlyCount "54"]
[EventDate "2018.10.19"]
[EventType "team-tourn"]
[EventCountry "TUR"]
[SourceTitle "playchess.com"]
[Source "ChessBase"]
[SourceQuality "1"]
[TimeControl "600+5"]

1. d4 {[%emt 0:00:05]} Nf6 {[%emt 0:00:05]} 2. Nf3 {[%emt 0:00:01]} c5 {[%emt 0:00:00]} 3. e3 {[%emt 0:00:05]} g6 {[%emt 0:00:05]} 4. c4 {[%emt 0:00:05]} Bg7 {[%emt 0:00:08]} 5. Nc3 {[%emt 0:00:02]} O-O {[%emt 0:00:05]} 6. Be2 {[%emt 0:00:05]} cxd4 {[%emt 0:00:05]} 7. exd4 {[%emt 0:00:05]} d5 {[%emt 0:00:05]} 8. cxd5 {[%emt 0:00:05]} Nxd5 {[%emt 0:00:00]} 9. Qb3 {[%emt 0:00:02]} Nb6 {[%emt 0:00:36]} 10. O-O {[%emt 0:00:27]} Be6 {[%emt 0:00:05]} 11. Qc2 {[%emt 0:02:41]} Nc6 {[%emt 0:00:05]} 12. Rd1 {[%emt 0:00:12]} Nb4 {[%emt 0:00:43]} 13. Qe4 {[%emt 0:02:29]} N6d5 {[%emt 0:00:54]} 14. Nxd5 {[%emt 0:00:26]} Bxd5 {[%emt 0:00:20]} 15. Qb1 {[%emt 0:00:29]} Rc8 {[%emt 0:01:32]} 16. Bd3 {[%emt 0:00:10]} Bxf3 {[%emt 0:00:19]} 17. gxf3 {[%emt 0:00:05]} Qxd4 {[%emt 0:00:09]} 18. Be3 {[%emt 0:00:27]} Qh4 {[%emt 0:00:31]} 19. Be4 {[%emt 0:01:06]} Be5 {[%emt 0:00:10]} 20. a3 {[%emt 0:00:49]} Qxh2+ {[%emt 0:00:27]} 21. Kf1 {[%emt 0:00:05]} Nc6 {[%emt 0:00:16]} 22. Bxc6 {[%emt 0:00:14]} Rxc6 {[%emt 0:00:04]} 23. Bxa7 {[%emt 0:00:37]} Re6 {[%emt 0:00:29]} 24. Be3 {[%emt 0:00:11]} Bf4 {[%emt 0:00:22]} 25. Qd3 {[%emt 0:00:30]} Rxe3 {[%emt 0:01:34]} 26. fxe3 {[%emt 0:00:05]} Bg3 {[%emt 0:00:03]} 27. Qd2 {[%emt 0:00:25]} Qh1+ {[%emt 0:00:01]} 0-1

[Event "Red Bull Chess Masters 2018"]
[Site "Istanbul"]
[Date "2018.10.20"]
[Round "3.1"]
[White "Eraslan, Ecem"]
[Black "Sahin, Handenur"]
[Result "0-1"]
[ECO "C60"]
[WhiteElo "1290"]
[BlackElo "1998"]
[Annotator "NA"]
[PlyCount "61"]
[EventDate "2018.10.19"]
[EventType "team-tourn"]
[EventCountry "TUR"]
[SourceTitle "playchess.com"]
[Source "ChessBase"]
[SourceQuality "1"]
[TimeControl "600+5"]

1. e4 {[%emt 0:00:05]} e5 {[%emt 0:00:05]} 2. Nf3 {[%emt 0:00:01]} Nc6 {[%emt 0:00:01]} 3. Bb5 {[%emt 0:00:05]} Nge7 {[%emt 0:00:05]} 4. d3 {[%emt 0:00:17]} g6 {[%emt 0:00:09]} 5. c3 {[%emt 0:00:20]} Bg7 {[%emt 0:00:14]} 6. O-O {[%emt 0:00:19]} O-O {[%emt 0:00:10]} 7. Re1 {[%emt 0:00:41]} a6 {[%emt 0:00:05]} 8. Ba4 {[%emt 0:00:00]} d6 {[%emt 0:00:49]} 9. h3 {[%emt 0:00:07]} h6 {[%emt 0:00:19]} 10. Nbd2 {[%emt 0:00:25]} Be6 {[%emt 0:00:07]} 11. Nf1 {[%emt 0:00:44]} b5 {[%emt 0:00:23]} 12. Bc2 {[%emt 0:00:05]} d5 {[%emt 0:00:00]} 13. exd5 {[%emt 0:00:32]} Nxd5 {[%emt 0:00:15]} 14. Qe2 {[%emt 0:01:32]} Re8 {[%emt 0:00:47]} 15. Ng3 {[%emt 0:00:29]} Rb8 {[%emt 0:01:32]} 16. Ne4 {[%emt 0:02:00]} b4 {[%emt 0:01:22]} 17. Bd2 {[%emt 0:00:25]} Nf4 {[%emt 0:00:22]} 18. Bxf4 {[%emt 0:00:24]} exf4 {[%emt 0:00:05]} 19. d4 {[%emt 0:00:13]} bxc3 {[%emt 0:00:21]} 20. bxc3 {[%emt 0:00:13]} Rb2 {[%emt 0:00:19]} 21. Qd3 {[%emt 0:00:57]} Bf5 {[%emt 0:00:55]} 22. Ba4 {[%emt 0:00:53]} Ne5 {[%emt 0:01:18]} 23. Nxe5 {[%emt 0:00:14]} Rxe5 {[%emt 0:00:04]} 24. Bb3 {[%emt 0:00:14]} c5 {[%emt 0:00:52]} 25. f3 {[%emt 0:00:28]} cxd4 {[%emt 0:00:16]} 26. cxd4 {[%emt 0:00:02]} Rb5 {[%emt 0:00:16]} 27. Qd1 {[%emt 0:00:16]} Qxd4+ {[%emt 0:00:15]} 28. Qxd4 {[%emt 0:00:07]} Bxd4+ {[%emt 0:00:00]} 29. Kh1 R2xb3 30. axb3 Bxa1 31. Rxa1 0-1

[Event "Red Bull Chess Masters 2018"]
[Site "Istanbul"]
[Date "2018.10.20"]
[Round "3.1"]
[White "Tofan, Zeynep"]
[Black "Dai, Irmak"]
[Result "0-1"]
[ECO "B51"]
[WhiteElo "1058"]
[BlackElo "1854"]
[Annotator "NA"]
[PlyCount "58"]
[EventDate "2018.10.19"]
[EventType "team-tourn"]
[EventCountry "TUR"]
[SourceTitle "playchess.com"]
[Source "ChessBase"]
[SourceQuality "1"]
[TimeControl "600+5"]

1. e4 {[%emt 0:00:05]} c5 {[%emt 0:00:05]} 2. Nf3 {[%emt 0:00:05]} d6 {[%emt 0:00:01]} 3. Nc3 {[%emt 0:00:00]} Nc6 {[%emt 0:00:05]} 4. Bb5 {[%emt 0:00:04]} Bd7 {[%emt 0:00:05]} 5. O-O {[%emt 0:00:00]} Nf6 {[%emt 0:00:15]} 6. d3 {[%emt 0:00:21]} e6 {[%emt 0:00:06]} 7. Bg5 {[%emt 0:00:10]} Be7 {[%emt 0:00:05]} 8. Re1 {[%emt 0:00:05]} Qc7 {[%emt 0:00:22]} 9. h3 {[%emt 0:01:06]} O-O {[%emt 0:00:03]} 10. Qd2 {[%emt 0:00:17]} a6 {[%emt 0:00:09]} 11. Bxc6 {[%emt 0:00:20]} Bxc6 {[%emt 0:00:02]} 12. Re3 {[%emt 0:01:37]} b5 {[%emt 0:00:34]} 13. a3 {[%emt 0:00:45]} a5 {[%emt 0:00:37]} 14. Rae1 {[%emt 0:01:58]} b4 {[%emt 0:00:28]} 15. axb4 {[%emt 0:00:05]} axb4 {[%emt 0:00:01]} 16. Ne2 {[%emt 0:00:32]} Ra2 {[%emt 0:00:21]} 17. b3 {[%emt 0:00:42]} h6 {[%emt 0:00:42]} 18. Bxf6 {[%emt 0:00:22]} Bxf6 {[%emt 0:00:01]} 19. d4 {[%emt 0:01:24]} Rd8 {[%emt 0:02:21]} 20. Rd1 {[%emt 0:01:04]} Qb7 {[%emt 0:01:16]} 21. Qd3 {[%emt 0:00:19]} Bb5 {[%emt 0:00:52]} 22. Qd2 {[%emt 0:00:02]} Qc7 {[%emt 0:00:38]} 23. Re1 {[%emt 0:00:22]} Rda8 {[%emt 0:01:55]} 24. e5 {[%emt 0:00:09]} Be7 {[%emt 0:00:05]} 25. Kh1 {[%emt 0:00:02]} Rd8 {[%emt 0:00:11]} 26. Rd3 {[%emt 0:00:05]} Bxd3 {[%emt 0:00:05]} 27. Qc1 {[%emt 0:00:00]} Rxc2 {[%emt 0:00:07]} 28. Qa1 {[%emt 0:00:04]} Rxe2 {[%emt 0:00:12]} 29. Rxe2 {[%emt 0:00:05]} Bxe2 {[%emt 0:00:00]} 0-1

[Event "Red Bull Chess Masters 2018"]
[Site "Istanbul"]
[Date "2018.10.20"]
[Round "3.2"]
[White "Tasdogen, Dincer"]
[Black "Ozen, Bahadir"]
[Result "1-0"]
[ECO "C49"]
[WhiteElo "2310"]
[BlackElo "2349"]
[Annotator "NA"]
[PlyCount "93"]
[EventDate "2018.10.19"]
[EventType "team-tourn"]
[EventCountry "TUR"]
[SourceTitle "playchess.com"]
[Source "ChessBase"]
[SourceQuality "1"]
[TimeControl "600+5"]

1. e4 {[%emt 0:00:05]} e5 {[%emt 0:00:04]} 2. Nf3 {[%emt 0:00:02]} Nc6 {[%emt 0:00:05]} 3. Nc3 {[%emt 0:00:05]} Nf6 {[%emt 0:00:05]} 4. Bb5 {[%emt 0:00:05]} Bb4 {[%emt 0:00:00]} 5. O-O {[%emt 0:00:03]} O-O {[%emt 0:00:04]} 6. d3 {[%emt 0:00:05]} d6 {[%emt 0:00:05]} 7. Bg5 {[%emt 0:00:05]} Ne7 {[%emt 0:00:05]} 8. Nh4 {[%emt 0:00:05]} c6 {[%emt 0:00:05]} 9. Bc4 {[%emt 0:00:00]} d5 {[%emt 0:00:06]} 10. exd5 {[%emt 0:00:00] C49: Four Knights: 4 Bb5 Bb4} (10. Bb3 a5 11. a4 Qd6 12. Qf3 h6 13. Bxf6 Qxf6 14. Qxf6 gxf6 15. f4 Be6 16. exd5 cxd5 17. Nb5 Bd2 18. fxe5 fxe5 {1-0 (58) Artemiev,V (2660)-Sevian,S (2578) Martuni 2015}) 10... cxd5 {[%emt 0:00:41] LiveBook: 4 Games} 11. Bb3 {[%emt 0:00:00]} (11. Bxf6 $5 gxf6 12. Bb3 $11) 11... Bg4 {[%emt 0:01:13]} 12. Qc1 {[%emt 0:02:21]} Qd6 {[%emt 0:00:35]} 13. h3 {[%emt 0:01:51]} Bh5 {[%emt 0:00:22]} 14. f4 {[%emt 0:00:19]} e4 {[%emt 0:01:17] [#]} 15. f5 $146 {[%emt 0:00:33]} ({Predecessor:} 15. dxe4 dxe4 16. Qe1 h6 17. Bxf6 Qxf6 {1-0 (41) Panarin,M (2528)-Demchenko,A (2431) Belorechensk 2007}) 15... Bxc3 {[%emt 0:01:09]} 16. bxc3 {[%emt 0:00:05]} Rac8 {[%emt 0:00:00]} 17. Qd2 {[%emt 0:00:58]} d4 {[%emt 0:01:33]} 18. cxd4 {[%emt 0:00:37]} Qxd4+ {[%emt 0:00:03]} 19. Be3 {[%emt 0:00:16]} Qe5 {[%emt 0:00:02]} 20. d4 {[%emt 0:00:32]} Qd6 {[%emt 0:00:22]} 21. Bf4 {[%emt 0:00:25]} Qb6 {[%emt 0:00:05]} 22. g4 {[%emt 0:00:05]} Bxg4 {[%emt 0:00:05]} 23. hxg4 {[%emt 0:00:05]} Nxg4 {[%emt 0:00:00]} 24. Rad1 {[%emt 0:00:20]} Kh8 {[%emt 0:00:18]} 25. Qg2 {[%emt 0:00:14]} Nf6 {[%emt 0:00:09]} 26. c4 {[%emt 0:00:10]} Nc6 {[%emt 0:00:11]} 27. c5 {[%emt 0:00:11]} Qb4 {[%emt 0:00:00]} 28. Bd6 {[%emt 0:00:12]} (28. Kh1 $142) 28... e3 {[%emt 0:00:16]} 29. Bxf8 {[%emt 0:00:14]} Rxf8 {[%emt 0:00:00]} 30. Nf3 {[%emt 0:00:17]} Re8 $18 {[%emt 0:00:03]} 31. Rfe1 {[%emt 0:00:15]} Re4 {[%emt 0:00:03]} 32. Ng5 {[%emt 0:00:11]} Rxd4 {[%emt 0:00:23]} 33. Nxf7+ {[%emt 0:00:05]} Kg8 {[%emt 0:00:08]} 34. Ne5+ {[%emt 0:00:10]} Kh8 {[%emt 0:00:08]} 35. Nxc6 {[%emt 0:00:22]} bxc6 {[%emt 0:00:01]} 36. Rxe3 {[%emt 0:00:12]} Qxc5 {[%emt 0:00:16]} 37. Rxd4 {[%emt 0:00:24]} Qxd4 {[%emt 0:00:01]} 38. Qf2 {[%emt 0:00:13]} Qg4+ {[%emt 0:00:09]} 39. Kh1 {[%emt 0:00:35]} h5 {[%emt 0:00:10]} 40. Qe2 {[%emt 0:00:23]} Qd4 {[%emt 0:00:09]} 41. Re8+ {[%emt 0:00:06]} Kh7 {[%emt 0:00:05]} 42. Re3 {[%emt 0:00:08]} c5 {[%emt 0:00:00]} 43. Rh3 {[%emt 0:00:03]} c4 {[%emt 0:00:13]} 44. Bxc4 {[%emt 0:00:05]} h4 {[%emt 0:00:05]} 45. Qe1 {[%emt 0:00:05]} g5 {[%emt 0:00:05]} 46. fxg6+ {[%emt 0:00:05]} Kxg6 {[%emt 0:00:05]} 47. Qg1+ {[%emt 0:00:00]} 1-0